fUSD/lending_fUSD_20240109
["ID","MTS","AMOUNT","RATE_DAILY","PERIOD"]
[310980664,1704838335093,-400.29546201,0.00041257,2]
[310980665,1704838335102,-1826.97599399,0.0004126,2]
[310980666,1704838335116,-500.0,0.0004126,30]
[310980667,1704838335125,-896.15,0.0004126,30]
[310980668,1704838335134,-500.0,0.0004126,30]
[310980669,1704838335143,-2463.21,0.0004126,30]
[310980670,1704838335152,-500.0,0.00041342,30]
[310980671,1704838335161,-896.15,0.00041342,30]
[310980672,1704838335170,-500.0,0.00041342,30]
[310980673,1704838335180,-500.0,0.00041424,30]
[310980674,1704838335189,-500.0,0.00041424,30]
[310980675,1704838335199,-500.0,0.00041424,30]
[310980676,1704838335209,-896.15,0.00041424,30]
[310980677,1704838335219,-500.0,0.00041506,30]
[310980678,1704838335228,-500.0,0.00041506,30]
[310980679,1704838335238,-500.0,0.00041506,30]
[310980680,1704838335247,-896.15,0.00041506,30]
[310980681,1704838335257,-482.38597515,0.00041589,30]
[310980682,1704838335266,-1516.71,0.00041589,30]
[310980683,1704838335275,-2290.75,0.00041589,30]
[310980684,1704838335285,-568.27165663,0.00041589,30]
[310980685,1704838335294,-1124.84,0.00041589,30]
[310980686,1704838335303,-819.06390268,0.00041589,30]
[310980687,1704838335315,-2768.47609732,0.00041589,30]
[310980688,1704838335324,-4490.81,0.00041589,30]
[310980689,1704838335333,-500.0,0.00041589,30]
[310980690,1704838335342,-2664.9,0.00041589,30]
[310980691,1704838335352,-500.0,0.00041589,30]
[310980692,1704838335364,-1067.23,0.00041589,30]
[310980693,1704838335374,-1755.19,0.00041589,30]
[310980694,1704838335384,-627.07,0.00041589,30]
[310980695,1704838335393,-2101.87,0.00041589,30]
[310980696,1704838335403,-866.03,0.00041589,30]
[310980697,1704838335412,-2150.53,0.00041589,30]
[310980698,1704838335422,-234.56492169,0.00041589,30]
[310980699,1704838335432,-6286.35,0.00041589,30]
[310980700,1704838335441,-2616.94,0.00041589,30]
[310980701,1704838335451,-860.95,0.00041589,30]
[310980702,1704838335461,-1060.0,0.00041589,30]
[310980703,1704838335470,-3664.14,0.00041589,30]
[310980704,1704838335480,-4736.49,0.00041589,30]
[310980705,1704838335489,-3610.83,0.00041589,30]
[310980706,1704838335498,-2020.98402978,0.00041589,30]
[310980707,1704838335514,-4903.12638336,0.00041589,30]
[310980708,1704838335611,-538.83,0.00041095,30]
[310980709,1704838335621,-500.0,0.00041095,30]
[310980710,1704838335630,-538.83,0.00041178,30]
[310980711,1704838335639,-2463.21,0.00041342,30]
[310980712,1704838335649,-2463.21,0.00041424,30]
[310980713,1704838335658,-1872.5058548,0.00041589,30]
[310980714,1704838335669,-13234.44383702,0.00041589,30]
[310980715,1704838336311,-500.0,0.00041095,30]
[310980716,1704838336321,-3416.51635547,0.00041095,30]
[310980717,1704838336333,-3092.53697703,0.00041095,30]
[310980718,1704838336361,-458.40257697,0.00041095,30]
[310980719,1704838336405,-229.4112446,0.00034389,4]
[310980720,1704838336413,-3942.83409053,0.00041095,30]
[310980721,1704838336422,-500.0,0.00041095,14]
[310980722,1704838336432,-500.0,0.00041095,30]
[310980723,1704838336440,-926.19,0.00041095,30]
[310980724,1704838336450,-500.0,0.00041095,30]
[310980725,1704838336459,-500.0,0.00041178,30]
[310980726,1704838336468,-500.0,0.00041178,30]
[310980727,1704838336477,-10910.29,0.00041178,30]
[310980728,1704838336486,-500.0,0.00041178,14]
[310980729,1704838336496,-500.0,0.00041178,30]
[310980730,1704838336506,-926.19,0.00041178,30]
[310980731,1704838336515,-538.83,0.0004126,30]
[310980732,1704838336525,-500.0,0.0004126,30]
[310980733,1704838336534,-500.0,0.0004126,30]
[310980734,1704838336543,-10910.29,0.0004126,30]
[310980735,1704838336553,-538.83,0.00041342,30]
[310980736,1704838336563,-500.0,0.00041342,30]
[310980737,1704838336572,-538.83,0.00041424,30]
[310980738,1704838336582,-500.0,0.00041424,30]
[310980739,1704838336591,-2463.21,0.00041506,30]
[310980740,1704838336601,-538.83,0.00041506,30]
[310980741,1704838336613,-500.0,0.00041506,30]
[310980742,1704838336623,-18754.21989504,0.00041589,30]
[310980743,1704838336632,-785.46,0.00041589,30]
[310980744,1704838336641,-496.65373204,0.00041589,30]
[310980745,1704838336650,-1340.08,0.00041589,30]
[310980746,1704838336660,-658.29,0.00041589,30]
[310980747,1704838336670,-673.12,0.00041589,30]
[310980748,1704838336681,-500.0,0.00041589,30]
[310980749,1704838336690,-8699.1,0.00041589,30]
[310980750,1704838336699,-1946.17,0.00041589,30]
[310980751,1704838336709,-2512.6,0.00041589,30]
[310980752,1704838336718,-533.86,0.00041589,30]
[310980753,1704838336728,-616.9,0.00041589,30]
[310980754,1704838336737,-4221.43,0.00041589,30]
[310980755,1704838336747,-500.0,0.00041589,30]
[310980756,1704838336757,-1228.81,0.00041589,30]
[310980757,1704838336766,-500.0,0.00041589,30]
[310980758,1704838336775,-1021.25,0.00041589,2]
[310980759,1704838336784,-8912.41,0.00041589,30]
[310980760,1704838336793,-1699.6,0.00041589,30]
[310980761,1704838336802,-2915.16,0.00041589,30]
[310980762,1704838336812,-2785.67,0.00041589,30]
[310980763,1704838336821,-1025.86,0.00041589,30]
[310980764,1704838336831,-500.0,0.00041589,30]
[310980765,1704838336840,-500.0,0.00041589,30]
[310980766,1704838336849,-981.9,0.00041589,30]
[310980767,1704838336861,-828.29,0.00041589,30]
[310980768,1704838336870,-626.56,0.00041589,30]
[310980769,1704838336880,-758.12,0.00041589,30]
[310980770,1704838336890,-872.5,0.00041589,30]
[310980771,1704838336900,-2432.43,0.00041589,30]
[310980772,1704838336910,-2738.31,0.00041589,30]
[310980773,1704838336920,-1493.27,0.00041589,30]
[310980774,1704838336930,-500.0,0.00041589,30]
[310980775,1704838336939,-1780.73,0.00041589,30]
[310980776,1704838336948,-500.0,0.00041589,30]
[310980777,1704838336958,-2880.3,0.00041589,30]
[310980778,1704838336967,-500.0,0.00041589,30]
[310980779,1704838336976,-2449.49,0.00041589,30]
[310980780,1704838336985,-500.0,0.00041589,30]
[310980781,1704838336994,-500.0,0.00041589,30]
[310980782,1704838337003,-919.25,0.00041589,30]
[310980783,1704838337014,-532.67,0.00041589,30]
[310980784,1704838337023,-515.49,0.00041589,30]
[310980785,1704838337032,-3619.65,0.00041589,30]
[310980786,1704838337041,-1342.25,0.00041589,30]
[310980787,1704838337050,-1684.71,0.00041589,30]
[310980788,1704838337060,-16615.54,0.00041589,30]
[310980789,1704838337069,-2277.23,0.00041589,30]
[310980790,1704838337079,-5020.76,0.00041589,30]
[310980791,1704838337088,-1808.27,0.00041589,30]
[310980792,1704838337098,-1296.63,0.00041589,30]
[310980793,1704838337107,-500.0,0.00041589,30]
[310980794,1704838337120,-500.0,0.00041589,7]
[310980795,1704838337129,-1976.34,0.00041589,30]
[310980796,1704838337138,-500.0,0.00041589,30]
[310980797,1704838337148,-1539.01,0.00041589,30]
[310980798,1704838337157,-1666.86,0.00041589,30]
[310980799,1704838337166,-948.22,0.00041589,30]
[310980800,1704838337175,-1205.56,0.00041589,30]
[310980801,1704838337184,-2079.61,0.00041589,30]
[310980802,1704838337194,-801.76,0.00041589,30]
[310980803,1704838337204,-4081.69,0.00041589,30]
[310980804,1704838337213,-3259.69,0.00041589,30]
[310980805,1704838337223,-500.0,0.00041589,30]
[310980806,1704838337232,-570.73,0.00041589,30]
[310980807,1704838337242,-1497.4,0.00041589,30]
[310980808,1704838337251,-717.5,0.00041589,30]
[310980809,1704838337261,-1778.5,0.00041589,30]
[310980810,1704838337270,-2771.91,0.00041589,30]
[310980811,1704838337279,-1907.56,0.00041589,30]
[310980812,1704838337289,-403.47681032,0.00041589,30]
[310980813,1704838337298,-500.0,0.00041589,30]
[310980814,1704838337308,-1123.88,0.00041589,30]
[310980815,1704838337318,-28570.96,0.00041589,30]
[310980816,1704838337327,-5007.65,0.00041589,30]
[310980817,1704838337335,-4669.56,0.00041589,30]
[310980818,1704838337345,-500.0,0.00041589,30]
[310980819,1704838337354,-5248.46,0.00041589,30]
[310980820,1704838337366,-1486.69,0.00041589,30]
[310980821,1704838337375,-3322.13,0.00041589,30]
[310980822,1704838337384,-2423.33,0.00041589,30]
[310980823,1704838337394,-500.0,0.00041589,30]
[310980824,1704838337403,-544.33,0.00041589,30]
[310980825,1704838337412,-2505.63,0.00041589,30]
[310980826,1704838337422,-2340.4,0.00041589,30]
[310980827,1704838337432,-2974.2,0.00041589,30]
[310980828,1704838337441,-791.9,0.00041589,30]
[310980829,1704838337451,-585.8,0.00041589,30]
[310980830,1704838337460,-500.0,0.00041589,30]
[310980831,1704838337471,-500.0,0.00041589,30]
[310980832,1704838337480,-2998.41,0.00041589,30]
[310980833,1704838337490,-4396.89,0.00041589,30]
[310980834,1704838337499,-484.08405559,0.00041589,30]
[310980835,1704838337521,-1716.36594441,0.00041589,30]
[310980836,1704838337531,-500.0,0.00041589,30]
[310980837,1704838337540,-606.27,0.00041589,30]
[310980838,1704838337549,-669.83,0.00041589,30]
[310980839,1704838337559,-500.0,0.00041589,30]
[310980840,1704838337569,-665.74,0.00041589,30]
[310980841,1704838337579,-1058.26,0.00041589,30]
[310980842,1704838337588,-500.0,0.00041589,30]
[310980843,1704838337597,-424.03603583,0.00041589,30]
[310980844,1704838337611,-75.96396417,0.00041589,30]
[310980845,1704838337621,-500.0,0.00041589,30]
[310980846,1704838337630,-89.92467583,0.00041589,30]
[310980847,1704838337658,-500.0,0.00041095,30]
[310980848,1704838337668,-500.0,0.0004126,30]
[310980849,1704838337677,-38.30817201,0.0004126,30]
[310980850,1704838337719,-887.88182799,0.0004126,30]
[310980851,1704838337728,-806.22532417,0.00041589,30]
[310980852,1704838337738,-2463.21,0.00041589,30]
[310980853,1704838337747,-538.83,0.00041589,30]
[310980854,1704838337756,-500.0,0.00041589,30]
[310980855,1704838337766,-150.0,0.0004159,2]
[310980856,1704838337775,-156.09,0.00041606,60]
[310980857,1704838337784,-150.0,0.00041608,2]
[310980858,1704838337793,-747.90584784,0.00041643,38]
[310980859,1704838337804,-371.19415216,0.00041643,38]
[310980860,1704838337814,-4310.09,0.00041643,30]
[310980861,1704838337824,-4310.09,0.00041643,30]
[310980862,1704838337834,-3035.51426032,0.00041643,30]
[310980863,1704838338866,-172.06283293,0.00034389,4]
[310980864,1704838338876,-728.0,0.00037311,5]
[310980865,1704838338885,-2034.90926844,0.00037521,2]
[310980866,1704838338895,-276.79936367,0.00041095,30]
[310980867,1704838338936,-223.20063633,0.00041095,30]
[310980868,1704838338945,-500.0,0.00041095,30]
[310980869,1704838338955,-587.24752515,0.00041095,30]
[310980870,1704838338964,-536.33,0.00041095,30]
[310980871,1704838338974,-503.81,0.00041095,30]
[310980872,1704838338984,-500.0,0.00041095,5]
[310980873,1704838338993,-500.0,0.00041178,30]
[310980874,1704838339003,-500.0,0.00041178,30]
[310980875,1704838339013,-500.0,0.00041178,30]
[310980876,1704838339022,-394.02722155,0.00041178,30]
[310980877,1704838339047,-105.97277845,0.00041178,30]
[310980878,1704838339056,-536.33,0.00041178,30]
[310980879,1704838339066,-497.84633071,0.00041178,30]
[310980880,1704838339078,-5.96366929,0.00041178,30]
[310980881,1704838339087,-500.0,0.0004126,30]
[310980882,1704838339097,-36.03633071,0.0004126,30]
[310980883,1704838339223,-0.01987323,0.0004126,30]
[310980884,1704838339235,-463.94379606,0.0004126,30]
[310980885,1704838339245,-500.0,0.0004126,30]
[310980886,1704838339255,-265.15302729,0.0004126,30]
[310980887,1704838339264,-536.33,0.0004126,30]
[310980888,1704838339274,-500.0,0.00041342,30]
[310980889,1704838339284,-926.19,0.00041342,30]
[310980890,1704838339293,-500.0,0.00041342,30]
[310980891,1704838339303,-500.0,0.00041342,30]
[310980892,1704838339312,-500.0,0.00041342,30]
[310980893,1704838339322,-536.33,0.00041342,30]
[310980894,1704838339331,-926.19,0.00041424,30]
[310980895,1704838339341,-500.0,0.00041424,30]
[310980896,1704838339350,-500.0,0.00041424,30]
[310980897,1704838339360,-602.18564675,0.00041424,30]
[310980898,1704838339371,-500.0,0.00041424,30]
[310980899,1704838339381,-926.19,0.00041506,30]
[310980900,1704838339390,-500.0,0.00041506,30]
[310980901,1704838339400,-500.0,0.00041506,30]
[310980902,1704838339409,-500.0,0.00041506,30]
[310980903,1704838339419,-926.19,0.00041589,30]
[310980904,1704838339429,-500.0,0.00041589,30]
[310980905,1704838339439,-500.0,0.00041589,30]
[310980906,1704838339448,-500.0,0.00041589,30]
[310980907,1704838339458,-1274.57573968,0.00041643,30]
[310980908,1704838339468,-4310.09,0.00041643,30]
[310980909,1704838339477,-4310.09,0.00041643,30]
[310980910,1704838339488,-4310.09,0.00041643,30]
[310980911,1704838339498,-4310.09,0.00041643,30]
[310980912,1704838339508,-500.0,0.00041671,2]
[310980913,1704838339518,-500.0,0.00041671,2]
[310980914,1704838339528,-500.0,0.00041671,2]
[310980915,1704838339537,-500.0,0.00041671,2]
[310980916,1704838339547,-500.0,0.00041671,2]
[310980917,1704838339557,-500.0,0.00041671,2]
[310980918,1704838339566,-500.0,0.00041671,2]
[310980919,1704838339576,-500.0,0.00041671,2]
[310980920,1704838339585,-361.50778822,0.00041671,2]
[310980921,1704838339595,-536.330019,0.00041671,14]
[310980922,1704838339605,-536.330016,0.00041671,14]
[310980923,1704838339615,-417.310268,0.00041671,14]
[310980924,1704838339625,-417.310263,0.00041671,14]
[310980925,1704838339635,-235.364519,0.00041671,14]
[310980926,1704838339645,-235.364521,0.00041671,14]
[310980927,1704838339654,-500.0,0.00041671,30]
[310980928,1704838339664,-500.0,0.00041671,30]
[310980929,1704838339674,-807.24,0.00041671,30]
[310980930,1704838339684,-500.0,0.00041671,30]
[310980931,1704838339693,-500.0,0.00041671,30]
[310980932,1704838339703,-504.11459511,0.00041671,30]
[310980933,1704838339712,-840.21,0.00041671,30]
[310980934,1704838339721,-500.0,0.00041671,7]
[310980935,1704838339731,-581.05,0.00041671,30]
[310980936,1704838339741,-981.24,0.00041671,30]
[310980937,1704838339751,-841.98,0.00041671,30]
[310980938,1704838339761,-500.0,0.00041671,30]
[310980939,1704838339771,-548.78,0.00041671,30]
[310980940,1704838339780,-659.63,0.00041671,30]
[310980941,1704838339791,-711.8,0.00041671,30]
[310980942,1704838339800,-615.37,0.00041671,30]
[310980943,1704838339810,-648.25,0.00041671,30]
[310980944,1704838339820,-500.0,0.00041671,30]
[310980945,1704838339829,-737.28,0.00041671,30]
[310980946,1704838339840,-550.5,0.00041671,30]
[310980947,1704838339850,-500.0,0.00041671,30]
[310980948,1704838339859,-500.0,0.00041671,30]
[310980949,1704838339874,-500.0,0.00041671,30]
[310980950,1704838339883,-500.0,0.00041671,30]
[310980951,1704838339892,-549.09,0.00041671,30]
[310980952,1704838339902,-532.54,0.00041671,30]
[310980953,1704838339911,-500.0,0.00041671,30]
[310980954,1704838339921,-407.10633081,0.00041671,30]
[310980955,1704838339935,-8.14715668,0.00041671,30]
[310980956,1704838339945,-500.0,0.00041671,30]
[310980957,1704838339955,-769.53,0.00041671,30]
[310980958,1704838339964,-619.92,0.00041671,30]
[310980959,1704838339973,-500.0,0.00041671,30]
[310980960,1704838339983,-500.0,0.00041671,30]
[310980961,1704838339992,-965.65,0.00041671,30]
[310980962,1704838340002,-500.0,0.00041671,30]
[310980963,1704838340011,-351.36807115,0.00041671,30]
[310980964,1704838340044,-500.0,0.00041671,30]
[310980965,1704838340054,-589.22,0.00041671,30]
[310980966,1704838340063,-500.0,0.00041671,30]
[310980967,1704838340073,-500.0,0.00041671,30]
[310980968,1704838340083,-500.0,0.00041671,30]
[310980969,1704838340093,-500.0,0.00041671,30]
[310980970,1704838340103,-582.79,0.00041671,30]
[310980971,1704838340112,-631.03,0.00041671,30]
[310980972,1704838340123,-545.27,0.00041671,30]
[310980973,1704838340133,-383.91799467,0.00041671,30]
[310980974,1704838340142,-500.0,0.00041671,30]
[310980975,1704838340152,-659.73,0.00041671,30]
[310980976,1704838340161,-500.0,0.00041671,30]
[310980977,1704838340172,-556.47,0.00041671,30]
[310980978,1704838340182,-1383.38,0.00041671,30]
[310980979,1704838340191,-500.0,0.00041671,30]
[310980980,1704838340201,-500.0,0.00041671,30]
[310980981,1704838340211,-500.0,0.00041671,30]
[310980982,1704838340221,-794.95,0.00041671,30]
[310980983,1704838340231,-362.88501634,0.00041671,30]
[310980984,1704838340248,-137.11498366,0.00041671,30]
[310980985,1704838340259,-583.28,0.00041671,30]
[310980986,1704838340269,-145.88042614,0.00041671,30]
[310980987,1704838340291,-500.0,0.00041178,5]
[310980988,1704838340300,-354.11957386,0.00041671,30]
[310980989,1704838340309,-500.0,0.00041671,30]
[310980990,1704838340319,-500.0,0.00041671,30]
[310980991,1704838340329,-500.0,0.00041671,15]
[310980992,1704838340339,-500.0,0.00041671,30]
[310980993,1704838340349,-1656.81,0.00041671,30]
[310980994,1704838340359,-181.56,0.00041671,30]
[310980995,1704838340372,-500.0,0.00041671,30]
[310980996,1704838340382,-575.33061289,0.00041671,2]
[310980997,1704838340393,-500.0,0.00041671,30]
[310980998,1704838340403,-855.3,0.00041671,30]
[310980999,1704838340413,-500.0,0.00041671,30]
[310981000,1704838340423,-500.0,0.00041671,30]
[310981001,1704838340433,-500.0,0.00041671,30]
[310981002,1704838340444,-500.0,0.00041671,30]
[310981003,1704838340454,-500.0,0.00041671,30]
[310981004,1704838340464,-500.0,0.00041671,30]
[310981005,1704838340475,-826.09,0.00041671,30]
[310981006,1704838340485,-500.0,0.00041671,30]
[310981007,1704838340495,-500.0,0.00041671,30]
[310981008,1704838340505,-557.00159197,0.00041671,30]
[310981009,1704838340516,-500.0,0.00041671,30]
[310981010,1704838340526,-699.72,0.00041671,30]
[310981011,1704838340536,-500.0,0.00041671,30]
[310981012,1704838340548,-969.6,0.00041671,30]
[310981013,1704838340559,-500.0,0.00041671,30]
[310981014,1704838340570,-500.0,0.00041671,30]
[310981015,1704838340580,-636.12,0.00041671,30]
[310981016,1704838340590,-209.25801484,0.00041671,30]
[310981017,1704838340603,-674.96198516,0.00041671,30]
[310981018,1704838340616,-809.17,0.00041671,30]
[310981019,1704838340626,-500.0,0.00041671,30]
[310981020,1704838340636,-500.0,0.00041671,30]
[310981021,1704838340646,-500.0,0.00041671,30]
[310981022,1704838340656,-1095.94,0.00041671,30]
[310981023,1704838340666,-6.94150262,0.00041671,30]
[310981024,1704838340678,-493.05849738,0.00041671,30]
[310981025,1704838340689,-500.0,0.00041671,30]
[310981026,1704838340699,-13.74150262,0.00041671,30]
[310981027,1704838340721,-486.25849738,0.00041671,30]
[310981028,1704838340730,-500.0,0.00041671,30]
[310981029,1704838340740,-697.87,0.00041671,30]
[310981030,1704838340750,-732.79,0.00041671,30]
[310981031,1704838340759,-500.0,0.00041671,30]
[310981032,1704838340769,-500.0,0.00041671,30]
[310981033,1704838341095,-1093.88,0.00041671,30]
[310981034,1704838341117,-500.0,0.00041671,30]
[310981035,1704838341127,-553.69,0.00041671,30]
[310981036,1704838341136,-911.96,0.00041671,30]
[310981037,1704838341146,-500.0,0.00041671,30]
[310981038,1704838341155,-629.6,0.00041671,30]
[310981039,1704838341164,-500.0,0.00041671,30]
[310981040,1704838341174,-954.8,0.00041671,30]
[310981041,1704838341183,-731.3,0.00041671,30]
[310981042,1704838341192,-500.0,0.00041671,30]
[310981043,1704838341202,-500.0,0.00041671,30]
[310981044,1704838341211,-630.15853854,0.00041671,30]
[310981045,1704838341221,-965.23,0.00041671,30]
[310981046,1704838341231,-715.75,0.00041671,30]
[310981047,1704838341242,-500.0,0.00041671,30]
[310981048,1704838341252,-868.98,0.00041671,30]
[310981049,1704838341262,-605.08,0.00041671,30]
[310981050,1704838341272,-793.55,0.00041671,30]
[310981051,1704838341282,-500.0,0.00041671,30]
[310981052,1704838341291,-940.16,0.00041671,30]
[310981053,1704838341301,-586.7,0.00041671,30]
[310981054,1704838341310,-629.82,0.00041671,30]
[310981055,1704838341320,-500.0,0.00041671,30]
[310981056,1704838341329,-826.1,0.00041671,30]
[310981057,1704838341339,-672.75,0.00041671,30]
[310981058,1704838341349,-500.0,0.00041671,30]
[310981059,1704838341358,-500.0,0.00041671,30]
[310981060,1704838341370,-500.0,0.00041671,30]
[310981061,1704838341380,-1579.44,0.00041671,30]
[310981062,1704838341389,-913.61,0.00041671,30]
[310981063,1704838341399,-740.8,0.00041671,30]
[310981064,1704838341409,-1195.0,0.00041671,30]
[310981065,1704838341419,-500.0,0.00041671,30]
[310981066,1704838341430,-537.75,0.00041671,30]
[310981067,1704838341439,-500.0,0.00041671,30]
[310981068,1704838341449,-758.11,0.00041671,30]
[310981069,1704838341459,-500.0,0.00041671,30]
[310981070,1704838341468,-1327.58,0.00041671,30]
[310981071,1704838341477,-500.0,0.00041671,30]
[310981072,1704838341486,-500.0,0.00041671,30]
[310981073,1704838341496,-526.19,0.00041671,30]
[310981074,1704838341506,-500.0,0.00041671,30]
[310981075,1704838341515,-1553.12,0.00041671,30]
[310981076,1704838341525,-627.74,0.00041671,30]
[310981077,1704838341535,-500.0,0.00041671,30]
[310981078,1704838341544,-500.0,0.00041671,30]
[310981079,1704838341554,-813.03,0.00041671,30]
[310981080,1704838341564,-500.0,0.00041671,30]
[310981081,1704838341573,-139.46095192,0.00041671,30]
[310981082,1704838341871,-250.0,0.00036717,2]
[310981083,1704838341881,-7953.28500058,0.00037827,2]
[310981084,1704838341891,-500.0,0.00041095,30]
[310981085,1704838341901,-503.81,0.0004126,30]
[310981086,1704838341911,-500.0,0.0004126,5]
[310981087,1704838341921,-503.81,0.00041342,30]
[310981088,1704838341930,-500.0,0.00041342,5]
[310981089,1704838341941,-2994.28117643,0.00041342,30]
[310981090,1704838342355,-327.35498,0.0003452,2]
[310981091,1704838342369,-491.03247,0.00034794,2]
[310981092,1704838342380,-403.92,0.00039872,2]
[310981093,1704838342391,-8749.99,0.00041,5]
[310981094,1704838342401,-500.0,0.00041095,30]
[310981095,1704838342412,-7916.00882357,0.00041342,30]
[310981096,1704838342421,-536.33,0.00041424,30]
[310981097,1704838342432,-122.323025,0.00041424,30]
[310981098,1704838342708,-353.14452739,0.00041424,30]
[310981099,1704838342720,-28.34244761,0.00041424,30]
[310981100,1704838342729,-500.0,0.00041424,5]
[310981101,1704838342739,-4437.00902897,0.00041424,30]
[310981102,1704838342751,-1533.95467315,0.00041424,30]
[310981103,1704838343659,-1.04875789,0.00041424,30]
[310981104,1704838351033,300.0,0.00022469,2]
[310981106,1704838360130,155.0,0.00022468,2]
[310981117,1704839251094,-383.49510476,0.00022784,2]
[310981118,1704839251116,-156.37387422,0.00022785,2]
[310981119,1704839251144,-10506.06029105,0.00022874,2]
[310981120,1704839251165,-24501.11784659,0.00022875,2]
[310981141,1704839345087,-1254.29308321,0.00022898,2]
[310981142,1704839345108,-10506.06029105,0.00022898,2]
[310981143,1704839345129,-36155.62043963,0.00022899,2]
[310981161,1704839358482,-996.4427,0.000229,2]
[310981162,1704839358506,-7111.6066,0.000229,2]
[310981163,1704839358532,-744.7107,0.000229,2]
[310981164,1704839358558,-9950.586,0.00023014,2]
[310981165,1704839358581,-156.37387414,0.00023796,2]
[310981166,1704839358604,-150.0,0.000244,2]
[310981167,1704839358631,-156.37387414,0.00024806,2]
[310981168,1704839358655,-350.0,0.00025,3]
[310981169,1704839358677,-1581.25327792,0.00025,2]
[310981170,1704839358699,-348.67776234,0.00025,2]
[310981171,1704839358724,-156.37387414,0.00025817,2]
[310981172,1704839358746,-3300.0,0.000259,2]
[310981173,1704839358770,-29921.0,0.000259,2]
[310981174,1704839358799,-156.37387414,0.00026828,2]
[310981175,1704839358825,-400.0,0.00027,3]
[310981176,1704839358848,-156.37387414,0.00027839,2]
[310981177,1704839358876,-156.37387414,0.00028849,2]
[310981178,1704839358902,-450.0,0.00029,3]
[310981179,1704839358927,-2542.78,0.00029815,2]
[310981180,1704839358952,-156.37387414,0.0002986,2]
[310981181,1704839358978,-341.52838613,0.00029932,2]
[310981182,1704839359003,-277.68,0.00029993,2]
[310981183,1704839359026,-9620.12645151,0.0003,2]
[310981184,1704839359051,-155.0,0.0003,2]
[310981185,1704839359076,-156.37387414,0.00030871,2]
[310981186,1704839359100,-500.0,0.00031,3]
[310981187,1704839359125,-1618.43195069,0.00031506,2]
[310981188,1704839359151,-200.0,0.00031507,2]
[310981189,1704839359175,-156.37387414,0.00031882,2]
[310981190,1704839359201,-365.1,0.00031885,2]
[310981191,1704839359224,-151.99,0.00031897,2]
[310981192,1704839359248,-4779.56,0.00031981,2]
[310981193,1704839359272,-382.96632065,0.00032,2]
[310981194,1704839359294,-382.96632065,0.00032,2]
[310981195,1704839359318,-382.96632065,0.00032,2]
[310981196,1704839359340,-250.0,0.00032062,2]
[310981197,1704839359363,-250.0,0.00032068,2]
[310981198,1704839359386,-150.0,0.00032085,2]
[310981199,1704839359409,-161.94,0.0003213,2]
[310981200,1704839359432,-639.37,0.00032134,2]
[310981201,1704839359455,-250.0,0.00032215,2]
[310981202,1704839359479,-277.68,0.00032257,2]
[310981203,1704839359504,-161.94,0.00032339,2]
[310981204,1704839359528,-382.96632065,0.00032379,2]
[310981205,1704839359551,-500.0,0.00032381,2]
[310981206,1704839359576,-8201.81,0.00032389,2]
[310981207,1704839359601,-161.94,0.00032548,2]
[310981208,1704839359626,-155.0,0.000326,4]
[310981209,1704839359651,-161.94,0.00032757,2]
[310981210,1704839359680,-524.14,0.00032877,15]
[310981211,1704839359705,-156.37387414,0.00032892,2]